[Event "44th Chess Olympiad Women 2022"]
[Site "Chennai"]
[Date "2022.08.02"]
[Round "5.58"]
[White "Nomcebo, Sibisi"]
[Black "Andre, Chineva Rufino"]
[Result "0-1"]
[ECO "D00"]
[WhiteElo "1225"]
[BlackElo "1171"]
[Annotator "NA RC COMBH"]
[PlyCount "134"]
[EventDate "2022.07.29"]
[EventType "team-tourn"]
[EventCountry "IND"]
[SourceTitle "playchess.com"]
[Source "ChessBase"]
[SourceQuality "1"]
[WhiteTeam "SWZ"]
[BlackTeam "Mozambique"]
[BlackTeamCountry "MOZ"]
[TimeControl "40/5400+30:1800+30"]

1. d4 {[%emt 0:00:06]} d5 {[%emt 0:00:09]} 2. e3 {[%emt 0:00:18]} Nf6 {[%emt 0:03:57]} 3. c3 {[%emt 0:00:41]} Bf5 {[%emt 0:03:06]} 4. Bd3 {[%emt 0:01:27]} Bxd3 {[%emt 0:04:02]} 5. Qxd3 {[%emt 0:00:18]} Nc6 {[%emt 0:05:47]} 6. f4 {[%emt 0:00:19]} e6 {[%emt 0:04:05]} 7. Nf3 {[%emt 0:00:17]} Bd6 {[%emt 0:05:27]} 8. Ne5 {[%emt 0:00:28]} Ne4 {[%emt 0:03:48]} 9. h4 {[%emt 0:02:04]} Be7 {[%emt 0:03:11]} 10. Nf3 {[%emt 0:01:00]} Qd6 {[%emt 0:03:40]} 11. Nbd2 {[%emt 0:00:33]} Nxd2 {[%emt 0:03:20]} 12. Bxd2 {[%emt 0:00:14]} O-O-O {[%emt 0:02:15]} 13. Ne5 {[%emt 0:00:49]} Nxe5 {[%emt 0:02:34]} 14. fxe5 {[%emt 0:00:44]} Qb6 {[%emt 0:02:16]} 15. b4 {[%emt 0:03:56]} f6 {[%emt 0:02:05]} 16. exf6 {[%emt 0:00:46]} Bxf6 {[%emt 0:01:57]} 17. a4 {[%emt 0:00:29]} Qd6 {[%emt 0:01:45]} 18. O-O-O {[%emt 0:02:07]} Qg3 {[%emt 0:02:17]} 19. Qe2 {[%emt 0:03:54]} Rhf8 {[%emt 0:02:13]} 20. Be1 {[%emt 0:01:11]} Qd6 {[%emt 0:01:09]} 21. h5 {[%emt 0:03:07]} e5 {[%emt 0:05:40]} 22. Bh4 {[%emt 0:00:30]} exd4 {[%emt 0:00:58]} 23. Bxf6 {[%emt 0:00:32]} Rxf6 {[%emt 0:00:36]} 24. exd4 {[%emt 0:00:19]} Qc6 {[%emt 0:01:20]} 25. Kc2 {[%emt 0:01:19]} Qxa4+ {[%emt 0:01:31]} 26. Kb1 {[%emt 0:01:39]} Rdf8 {[%emt 0:01:17]} 27. Qa2 {[%emt 0:07:48]} Qxa2+ {[%emt 0:00:53]} 28. Kxa2 {[%emt 0:00:10]} Rf2+ {[%emt 0:00:12]} 29. Kb3 {[%emt 0:00:23]} Rxg2 {[%emt 0:00:26]} 30. Rhg1 {[%emt 0:00:19]} Rff2 {[%emt 0:00:40]} 31. Rxg2 {[%emt 0:00:28]} Rxg2 {[%emt 0:00:12]} 32. Re1 {[%emt 0:00:12]} Kd7 {[%emt 0:01:03]} 33. Re5 {[%emt 0:00:16]} c6 {[%emt 0:00:29]} 34. Rf5 {[%emt 0:00:46]} Kc7 {[%emt 0:01:40]} 35. Rf7+ {[%emt 0:00:37]} Kb6 {[%emt 0:00:23]} 36. Rd7 {[%emt 0:00:32]} Rg5 {[%emt 0:01:23]} 37. h6 {[%emt 0:00:25]} gxh6 {[%emt 0:01:18]} 38. Rxh7 {[%emt 0:00:08]} h5 {[%emt 0:01:01]} 39. Ka4 {[%emt 0:00:32]} a6 {[%emt 0:00:43]} 40. Kb3 {[%emt 0:00:11]} Ka7 {[%emt 0:00:15]} 41. Ka4 {[%emt 0:30:18]} Rg3 {[%emt 0:31:14]} 42. Kb3 {[%emt 0:00:12]} Rh3 {[%emt 0:00:20]} 43. Rh6 {[%emt 0:00:34]} h4 {[%emt 0:00:34]} 44. Rh7 {[%emt 0:00:19]} Rh1 {[%emt 0:00:12]} 45. Kc2 {[%emt 0:04:09]} h3 {[%emt 0:00:21]} 46. Kd2 {[%emt 0:00:13]} Rh2+ {[%emt 0:01:21]} 47. Ke1 {[%emt 0:00:24]} Kb6 {[%emt 0:01:24]} 48. Kf1 {[%emt 0:00:35]} Ka7 {[%emt 0:01:30]} 49. Kg1 {[%emt 0:00:25]} Rg2+ {[%emt 0:00:26]} 50. Kh1 {[%emt 0:00:08]} Rg3 {[%emt 0:00:12]} 51. Kh2 {[%emt 0:01:19]} Rxc3 {[%emt 0:00:13]} 52. Rxh3 {[%emt 0:00:24]} Rxh3+ {[%emt 0:00:12]} 53. Kxh3 {[%emt 0:00:03]} Kb6 {[%emt 0:00:14]} 54. Kg3 {[%emt 0:00:18]} Kb5 {[%emt 0:00:12]} 55. Kf3 {[%emt 0:00:11]} Kxb4 {[%emt 0:00:10]} 56. Ke3 {[%emt 0:00:10]} Kc3 {[%emt 0:00:08]} 57. Ke2 {[%emt 0:00:25]} b5 {[%emt 0:00:15]} 58. Kd1 {[%emt 0:00:09]} b4 {[%emt 0:00:12]} 59. Kc1 {[%emt 0:00:08]} b3 {[%emt 0:00:15]} 60. Kb1 {[%emt 0:00:12]} a5 {[%emt 0:00:14]} 61. Kc1 {[%emt 0:00:34]} a4 {[%emt 0:00:18]} 62. Kb1 {[%emt 0:00:03]} a3 {[%emt 0:00:14]} 63. Ka1 {[%emt 0:00:11]} b2+ {[%emt 0:00:21]} 64. Ka2 {[%emt 0:00:27]} Kc2 {[%emt 0:00:10]} 65. Kxa3 {[%emt 0:01:15]} b1=Q {[%emt 0:00:12]} 66. Ka4 {[%emt 0:00:07]} Qb3+ {[%emt 0:00:13]} 67. Ka5 {[%emt 0:00:13]} Qb5# {[%emt 0:02:24]} 0-1

[Event "44th Chess Olympiad Women 2022"]
[Site "Chennai"]
[Date "2022.08.02"]
[Round "5.58"]
[White "Nkwanyane Nolwazi"]
[Black "Vilhete, Vania Fausto Da T."]
[Result "0-1"]
[ECO "D53"]
[WhiteElo "1158"]
[BlackElo "1701"]
[Annotator "NA RC COMBH"]
[PlyCount "88"]
[EventDate "2022.07.29"]
[EventType "team-tourn"]
[EventCountry "IND"]
[SourceTitle "playchess.com"]
[Source "ChessBase"]
[SourceQuality "1"]
[WhiteTeam "SWZ"]
[BlackTeam "Mozambique"]
[BlackTeamCountry "MOZ"]
[TimeControl "40/5400+30:1800+30"]

1. d4 {[%emt 0:00:04]} Nf6 {[%emt 0:00:09]} 2. c4 {[%emt 0:00:13]} e6 {[%emt 0:00:23]} 3. Nc3 {[%emt 0:00:19]} d5 {[%emt 0:00:22]} 4. Bg5 {[%emt 0:00:48]} Be7 {[%emt 0:00:33]} 5. e3 {[%emt 0:00:21]} Nbd7 {[%emt 0:02:09]} 6. c5 {[%emt 0:05:13]} c6 {[%emt 0:07:45]} 7. Nf3 {[%emt 0:04:56]} Qa5 {[%emt 0:03:40]} 8. a3 {[%emt 0:05:07]} Ne4 {[%emt 0:08:51]} 9. b4 {[%emt 0:02:08]} Nxc3 {[%emt 0:02:15]} 10. bxa5 {[%emt 0:00:25]} Nxd1 {[%emt 0:00:28]} 11. Bxe7 {[%emt 0:06:52]} Nxf2 {[%emt 0:02:56]} 12. Kxf2 {[%emt 0:02:44]} Kxe7 {[%emt 0:00:16]} 13. Be2 {[%emt 0:06:10]} Nf6 {[%emt 0:01:27]} 14. Nd2 {[%emt 0:03:23]} Re8 {[%emt 0:01:22]} 15. Rab1 {[%emt 0:11:19]} Kf8 {[%emt 0:01:11]} 16. h3 {[%emt 0:00:49]} e5 {[%emt 0:00:39]} 17. Nf3 {[%emt 0:13:26]} Ne4+ {[%emt 0:01:23]} 18. Ke1 {[%emt 0:03:22]} exd4 {[%emt 0:01:10]} 19. exd4 {[%emt 0:02:12]} Ng3 {[%emt 0:00:36]} 20. Kf2 {[%emt 0:03:21]} Nxe2 {[%emt 0:00:32]} 21. Rhe1 {[%emt 0:03:01]} Nc3 {[%emt 0:00:25]} 22. Rxe8+ {[%emt 0:01:28]} Kxe8 {[%emt 0:00:09]} 23. Re1+ {[%emt 0:04:29]} Ne4+ {[%emt 0:01:43]} 24. Kg1 {[%emt 0:00:40]} f6 {[%emt 0:00:19]} 25. g4 {[%emt 0:01:09]} Kf7 {[%emt 0:01:21]} 26. Rb1 {[%emt 0:01:03]} Nc3 {[%emt 0:01:18]} 27. Rf1 {[%emt 0:01:25]} h6 {[%emt 0:01:02]} 28. Ne5+ {[%emt 0:01:52]} Kg8 {[%emt 0:01:57]} 29. Ng6 {[%emt 0:00:54]} Ne2+ {[%emt 0:02:03]} 30. Kf2 {[%emt 0:01:29]} Nxd4 {[%emt 0:00:42]} 31. Re1 {[%emt 0:00:45]} Be6 {[%emt 0:05:38]} 32. Rb1 {[%emt 0:01:58]} Kf7 {[%emt 0:08:19]} 33. Nf4 {[%emt 0:00:22]} Bc8 {[%emt 0:02:43]} 34. Rc1 {[%emt 0:05:52]} Nb3 {[%emt 0:00:30]} 35. Rd1 {[%emt 0:01:46]} Nxc5 {[%emt 0:00:17]} 36. Nxd5 {[%emt 0:00:11]} cxd5 {[%emt 0:00:42]} 37. Rxd5 {[%emt 0:00:02]} Ne4+ {[%emt 0:00:54]} 38. Ke3 {[%emt 0:00:21]} Ng5 {[%emt 0:00:29]} 39. h4 {[%emt 0:01:45]} Ne6 {[%emt 0:00:15]} 40. Rb5 {[%emt 0:03:17]} b6 {[%emt 0:00:51]} 41. axb6 {[%emt 0:30:54]} axb6 {[%emt 0:30:08]} 42. Rxb6 {[%emt 0:02:14]} Rxa3+ {[%emt 0:00:16]} 43. Ke4 {[%emt 0:00:11]} Ra4+ {[%emt 0:00:27]} 44. Kd5 {[%emt 0:00:07]} Rxg4 {[%emt 0:01:01]} 0-1

[Event "44th Chess Olympiad Women 2022"]
[Site "Chennai"]
[Date "2022.08.02"]
[Round "5.58"]
[White "Naira Sinoia"]
[Black "Dlamini, Nosipho"]
[Result "1/2-1/2"]
[ECO "C50"]
[WhiteElo "1116"]
[BlackElo "1081"]
[Annotator "NA RC COMBH"]
[PlyCount "102"]
[EventDate "2022.07.29"]
[EventType "team-tourn"]
[EventCountry "IND"]
[SourceTitle "playchess.com"]
[Source "ChessBase"]
[SourceQuality "1"]
[WhiteTeam "Mozambique"]
[BlackTeam "SWZ"]
[WhiteTeamCountry "MOZ"]
[TimeControl "40/5400+30:1800+30"]

1. e4 {[%emt 0:00:15]} e5 {[%emt 0:00:04]} 2. Nf3 {[%emt 0:05:54]} Nc6 {[%emt 0:00:07]} 3. Bc4 {[%emt 0:04:40]} Bc5 {[%emt 0:00:19]} 4. d3 {[%emt 0:00:20]} h6 {[%emt 0:02:08]} 5. Nc3 {[%emt 0:05:58]} Nf6 {[%emt 0:00:07]} 6. h3 {[%emt 0:01:35]} d6 {[%emt 0:01:48]} 7. a3 {[%emt 0:06:41]} O-O {[%emt 0:01:04]} 8. Bd2 {[%emt 0:06:16]} a6 {[%emt 0:01:41]} 9. O-O {[%emt 0:03:39]} b5 {[%emt 0:02:04]} 10. Ba2 {[%emt 0:00:10]} Bb7 {[%emt 0:02:36]} 11. Ne2 {[%emt 0:02:33]} Re8 {[%emt 0:04:49]} 12. Ng3 {[%emt 0:02:46]} Nd4 {[%emt 0:03:39]} 13. c3 {[%emt 0:00:44]} Ne6 {[%emt 0:03:03]} 14. Nf5 {[%emt 0:03:35]} Nf4 {[%emt 0:04:48]} 15. Bxf4 {[%emt 0:00:40]} exf4 {[%emt 0:01:26]} 16. Qd2 {[%emt 0:00:39]} Nh5 {[%emt 0:02:35]} 17. N3h4 {[%emt 0:03:56]} Qf6 {[%emt 0:05:20]} 18. Qe2 {[%emt 0:11:49]} Ng3 {[%emt 0:07:09]} 19. Nxg3 {[%emt 0:00:40]} Qxh4 {[%emt 0:04:14]} 20. Nf5 {[%emt 0:00:48]} Qg5 {[%emt 0:02:09]} 21. Qg4 {[%emt 0:03:42]} Qxg4 {[%emt 0:05:09]} 22. hxg4 {[%emt 0:00:10]} Rad8 {[%emt 0:05:30]} 23. d4 {[%emt 0:00:14]} Ba7 {[%emt 0:01:06]} 24. f3 {[%emt 0:00:22]} c5 {[%emt 0:03:02]} 25. Rad1 {[%emt 0:03:46]} c4 {[%emt 0:01:52]} 26. Kh2 {[%emt 0:00:14]} Kh7 {[%emt 0:01:10]} 27. e5 {[%emt 0:05:34]} dxe5 {[%emt 0:00:30]} 28. dxe5 {[%emt 0:00:15]} Rxd1 {[%emt 0:00:36]} 29. Rxd1 {[%emt 0:00:44]} Bc6 {[%emt 0:05:47]} 30. Rd6 {[%emt 0:01:16]} Re6 {[%emt 0:04:38]} 31. Rxe6 {[%emt 0:02:05]} fxe6 {[%emt 0:00:09]} 32. Nd6 {[%emt 0:01:52]} Bc5 {[%emt 0:03:09]} 33. a4 {[%emt 0:00:36]} bxa4 {[%emt 0:02:36]} 34. Bxc4 {[%emt 0:00:12]} a3 {[%emt 0:03:31]} 35. bxa3 {[%emt 0:00:28]} Bxa3 {[%emt 0:00:19]} 36. Bxa6 {[%emt 0:00:05]} Bb2 {[%emt 0:00:58]} 37. Bb5 {[%emt 0:05:11]} Bd5 {[%emt 0:01:26]} 38. c4 {[%emt 0:00:21]} Bxe5 {[%emt 0:03:59]} 39. cxd5 {[%emt 0:00:42]} Bxd6 {[%emt 0:00:10]} 40. dxe6 {[%emt 0:00:26]} Kg6 {[%emt 0:00:41]} 41. Kg1 {[%emt 0:32:18]} Kf6 {[%emt 0:31:16]} 42. Bd7 {[%emt 0:00:16]} g5 {[%emt 0:01:30]} 43. Kf2 {[%emt 0:00:12]} Bc5+ {[%emt 0:01:38]} 44. Ke2 {[%emt 0:00:13]} Ke5 {[%emt 0:00:43]} 45. Kd3 {[%emt 0:00:17]} Kd5 {[%emt 0:01:21]} 46. Kc3 {[%emt 0:00:17]} Bd6 {[%emt 0:01:41]} 47. Kd3 {[%emt 0:01:46]} Be7 {[%emt 0:01:08]} 48. Bc8 {[%emt 0:00:50]} Bd6 {[%emt 0:02:40]} 49. Kc3 {[%emt 0:01:37]} Kc5 {[%emt 0:01:11]} 50. Kd3 {[%emt 0:00:14]} Kd5 {[%emt 0:00:52]} 51. Bd7 {[%emt 0:00:36]} Be7 {[%emt 0:02:06]} 1/2-1/2

[Event "44th Chess Olympiad Women 2022"]
[Site "Chennai"]
[Date "2022.08.02"]
[Round "5.59"]
[White "Wilson, Hannah"]
[Black "Beekhy, Aamirah"]
[Result "1-0"]
[ECO "C56"]
[WhiteElo "1556"]
[BlackElo "1373"]
[Annotator "NA RC COMBH"]
[PlyCount "36"]
[EventDate "2022.07.29"]
[EventType "team-tourn"]
[EventCountry "IND"]
[SourceTitle "playchess.com"]
[Source "ChessBase"]
[SourceQuality "1"]
[WhiteTeam "Barbados"]
[BlackTeam "Mauritius"]
[WhiteTeamCountry "BAR"]
[BlackTeamCountry "MRI"]
[TimeControl "40/5400+30:1800+30"]

1. e4 {[%emt 0:00:04]} e5 {[%emt 0:00:05]} 2. Nf3 {[%emt 0:00:11]} Nc6 {[%emt 0:00:29]} 3. d4 {[%emt 0:00:23]} exd4 {[%emt 0:03:04]} 4. Bc4 {[%emt 0:00:31]} d6 {[%emt 0:07:31]} 5. Nxd4 {[%emt 0:07:03]} Bd7 {[%emt 0:06:55]} 6. O-O {[%emt 0:03:23]} Nf6 {[%emt 0:02:46]} 7. Nc3 {[%emt 0:02:12]} g6 {[%emt 0:03:32]} 8. Re1 {[%emt 0:08:01]} Ne5 {[%emt 0:07:55]} 9. Bb3 {[%emt 0:02:50]} Be7 {[%emt 0:15:58]} 10. f4 {[%emt 0:04:32]} Nc6 {[%emt 0:10:30]} 11. e5 {[%emt 0:07:48]} dxe5 {[%emt 0:03:54]} 12. fxe5 {[%emt 0:02:58]} Bg4 {[%emt 0:05:25]} 13. Nxc6 {[%emt 0:04:41]} Bc5+ {[%emt 0:09:45]} 14. Kh1 {[%emt 0:02:49]} Bxd1 {[%emt 0:09:30]} 15. exf6+ {[%emt 0:02:42]} Kf8 {[%emt 0:01:17]} 16. Nxd8 {[%emt 0:00:33]} Rxd8 {[%emt 0:00:06]} 17. Nxd1 {[%emt 0:01:33]} h5 {[%emt 0:02:10]} 18. Bg5 {[%emt 0:03:56]} Bd6 {[%emt 0:05:19]} 1-0

[Event "44th Chess Olympiad Women 2022"]
[Site "Chennai"]
[Date "2022.08.02"]
[Round "5.59"]
[White "Eversley, Kiarra"]
[Black "Acham, Meritza"]
[Result "1/2-1/2"]
[ECO "B80"]
[WhiteElo "1356"]
[BlackElo "1397"]
[Annotator "NA RC COMBH"]
[PlyCount "147"]
[EventDate "2022.07.29"]
[EventType "team-tourn"]
[EventCountry "IND"]
[SourceTitle "playchess.com"]
[Source "ChessBase"]
[SourceQuality "1"]
[WhiteTeam "Barbados"]
[BlackTeam "Mauritius"]
[WhiteTeamCountry "BAR"]
[BlackTeamCountry "MRI"]
[TimeControl "40/5400+30:1800+30"]

1. e4 {[%emt 0:00:03]} c5 {[%emt 0:00:09]} 2. Nf3 {[%emt 0:00:27]} d6 {[%emt 0:00:08]} 3. d4 {[%emt 0:00:18]} cxd4 {[%emt 0:00:07]} 4. Nxd4 {[%emt 0:00:21]} Nf6 {[%emt 0:00:05]} 5. Nc3 {[%emt 0:00:40]} e6 {[%emt 0:00:06]} 6. Be3 {[%emt 0:00:53]} Be7 {[%emt 0:00:18]} 7. f3 {[%emt 0:01:25]} Nc6 {[%emt 0:00:35]} 8. Qd2 {[%emt 0:00:10]} a6 {[%emt 0:00:13]} 9. O-O-O {[%emt 0:04:03]} Qc7 {[%emt 0:00:44]} 10. h4 {[%emt 0:04:42]} h5 {[%emt 0:03:04]} 11. Be2 {[%emt 0:02:31]} Ne5 {[%emt 0:04:38]} 12. Rdg1 {[%emt 0:03:51]} Nc4 {[%emt 0:01:33]} 13. Bxc4 {[%emt 0:00:05]} Qxc4 {[%emt 0:00:23]} 14. Kb1 {[%emt 0:02:16]} Bd7 {[%emt 0:01:19]} 15. g4 {[%emt 0:00:57]} hxg4 {[%emt 0:02:49]} 16. fxg4 {[%emt 0:01:52]} e5 {[%emt 0:01:08]} 17. Nf5 {[%emt 0:05:20]} Nxe4 {[%emt 0:02:51]} 18. Nxe4 {[%emt 0:00:57]} Qxe4 {[%emt 0:01:25]} 19. Nxg7+ {[%emt 0:02:12]} Kf8 {[%emt 0:00:26]} 20. Bh6 {[%emt 0:00:22]} Kg8 {[%emt 0:01:20]} 21. Nf5 {[%emt 0:02:47]} Bf6 {[%emt 0:22:15]} 22. g5 {[%emt 0:02:32]} Bxf5 {[%emt 0:07:09]} 23. gxf6+ {[%emt 0:00:03]} Bg6 {[%emt 0:00:57]} 24. h5 {[%emt 0:00:17]} Rc8 {[%emt 0:03:21]} 25. hxg6 {[%emt 0:00:06]} fxg6 {[%emt 0:02:05]} 26. Qg2 {[%emt 0:03:04]} Qxg2 {[%emt 0:04:53]} 27. Rxg2 {[%emt 0:00:03]} Kf7 {[%emt 0:00:17]} 28. Rgh2 {[%emt 0:01:07]} e4 {[%emt 0:03:28]} 29. Bg5 {[%emt 0:00:38]} Rxh2 {[%emt 0:01:27]} 30. Rxh2 {[%emt 0:00:03]} Ke6 {[%emt 0:08:02]} 31. Rf2 {[%emt 0:02:00]} Kf7 {[%emt 0:00:09]} 32. c3 {[%emt 0:01:46]} Rc5 {[%emt 0:00:12]} 33. Be3 {[%emt 0:04:11]} Rf5 {[%emt 0:02:05]} 34. Bd4 {[%emt 0:00:17]} Rf3 {[%emt 0:07:05]} 35. Kc1 {[%emt 0:00:49]} Rxf2 {[%emt 0:02:47]} 36. Bxf2 {[%emt 0:00:03]} Kxf6 {[%emt 0:00:10]} 37. Kd2 {[%emt 0:00:46]} g5 {[%emt 0:05:13]} 38. Ke3 {[%emt 0:00:08]} Ke5 {[%emt 0:00:31]} 39. c4 {[%emt 0:00:56]} d5 {[%emt 0:02:33]} 40. Bg3+ {[%emt 0:00:21]} Ke6 {[%emt 0:00:45]} 41. cxd5+ {[%emt 0:31:12]} Kxd5 {[%emt 0:30:12]} 42. Bh2 {[%emt 0:00:35]} b5 {[%emt 0:01:10]} 43. Bg3 {[%emt 0:00:45]} a5 {[%emt 0:00:54]} 44. Bc7 {[%emt 0:00:29]} a4 {[%emt 0:01:02]} 45. a3 {[%emt 0:00:28]} g4 {[%emt 0:03:55]} 46. Bg3 {[%emt 0:00:11]} Kc4 {[%emt 0:01:03]} 47. Kxe4 {[%emt 0:00:14]} Kb3 {[%emt 0:01:30]} 48. Be5 {[%emt 0:00:50]} b4 {[%emt 0:02:16]} 49. Bd6 {[%emt 0:00:08]} bxa3 {[%emt 0:02:07]} 50. bxa3 {[%emt 0:00:03]} Kc4 {[%emt 0:00:37]} 51. Kf4 {[%emt 0:00:02]} Kd5 {[%emt 0:01:12]} 52. Bb4 {[%emt 0:00:03]} Kd4 {[%emt 0:00:36]} 53. Kxg4 {[%emt 0:00:03]} Kc4 {[%emt 0:00:27]} 54. Kf4 {[%emt 0:00:38]} Kd4 {[%emt 0:00:15]} 55. Kf5 {[%emt 0:00:21]} Kd5 {[%emt 0:00:34]} 56. Bf8 {[%emt 0:00:32]} Kc4 {[%emt 0:00:38]} 57. Ke4 {[%emt 0:00:16]} Kb5 {[%emt 0:00:40]} 58. Kd5 {[%emt 0:00:04]} Kb6 {[%emt 0:00:22]} 59. Kc4 {[%emt 0:00:10]} Kb7 {[%emt 0:00:19]} 60. Kb5 {[%emt 0:00:24]} Ka8 {[%emt 0:00:18]} 61. Kxa4 {[%emt 0:00:45]} Kb7 {[%emt 0:00:14]} 62. Ka5 {[%emt 0:00:46]} Ka7 {[%emt 0:00:20]} 63. Be7 {[%emt 0:00:38]} Kb7 {[%emt 0:00:16]} 64. Bc5 {[%emt 0:00:38]} Ka8 {[%emt 0:00:08]} 65. Ka6 {[%emt 0:00:07]} Kb8 {[%emt 0:00:29]} 66. Kb6 {[%emt 0:00:56]} Ka8 {[%emt 0:00:05]} 67. Kc6 {[%emt 0:01:14]} Kb8 {[%emt 0:00:08]} 68. Bd6+ {[%emt 0:00:31]} Ka8 {[%emt 0:00:08]} 69. Kc7 {[%emt 0:02:29]} Ka7 {[%emt 0:00:09]} 70. Kc8 {[%emt 0:01:03]} Ka8 {[%emt 0:00:08]} 71. Kc7 {[%emt 0:06:59]} Ka7 {[%emt 0:00:07]} 72. Bf4 {[%emt 0:00:57]} Ka8 {[%emt 0:00:08]} 73. Kc6 {[%emt 0:00:17]} Ka7 {[%emt 0:00:04]} 74. Kd5 {[%emt 0:41:36]} 1/2-1/2

[Event "44th Chess Olympiad Women 2022"]
[Site "Chennai"]
[Date "2022.08.02"]
[Round "5.60"]
[White "Garcia, Andrea Nicole"]
[Black "Sy, Mariama"]
[Result "1-0"]
[ECO "C60"]
[WhiteElo "1631"]
[BlackElo "1211"]
[Annotator "NA RC COMBH"]
[PlyCount "69"]
[EventDate "2022.07.29"]
[EventType "team-tourn"]
[EventCountry "IND"]
[SourceTitle "playchess.com"]
[Source "ChessBase"]
[SourceQuality "1"]
[WhiteTeam "Honduras"]
[BlackTeam "Senegal"]
[WhiteTeamCountry "HON"]
[BlackTeamCountry "SEN"]
[TimeControl "40/5400+30:1800+30"]

1. e4 {[%emt 0:00:04]} e5 {[%emt 0:01:20]} 2. Nf3 {[%emt 0:00:05]} Nc6 {[%emt 0:00:13]} 3. Bb5 {[%emt 0:00:06]} Bd6 {[%emt 0:01:31]} 4. c3 {[%emt 0:00:51]} Nf6 {[%emt 0:00:49]} 5. d3 {[%emt 0:01:20]} O-O {[%emt 0:00:20]} 6. O-O {[%emt 0:00:21]} a6 {[%emt 0:00:26]} 7. Ba4 {[%emt 0:00:13]} b5 {[%emt 0:00:22]} 8. Bc2 {[%emt 0:00:22]} Bb7 {[%emt 0:00:15]} 9. d4 {[%emt 0:02:45]} Re8 {[%emt 0:01:10]} 10. Re1 {[%emt 0:03:35]} exd4 {[%emt 0:04:19]} 11. cxd4 {[%emt 0:00:37]} Na5 {[%emt 0:01:04]} 12. e5 {[%emt 0:02:20]} Bb4 {[%emt 0:00:30]} 13. Bd2 {[%emt 0:01:27]} Bxd2 {[%emt 0:00:21]} 14. Nbxd2 {[%emt 0:09:09]} Ng4 {[%emt 0:00:31]} 15. h3 {[%emt 0:02:21]} Nh6 {[%emt 0:00:16]} 16. b3 {[%emt 0:05:41]} d6 {[%emt 0:00:11]} 17. Be4 {[%emt 0:12:56]} dxe5 {[%emt 0:03:51]} 18. Bxb7 {[%emt 0:00:48]} Nxb7 {[%emt 0:00:19]} 19. dxe5 {[%emt 0:01:04]} f6 {[%emt 0:02:34]} 20. exf6 {[%emt 0:01:26]} Qxf6 {[%emt 0:00:25]} 21. Qc2 {[%emt 0:01:00]} c6 {[%emt 0:01:03]} 22. Rac1 {[%emt 0:01:11]} Rac8 {[%emt 0:00:36]} 23. Rxe8+ {[%emt 0:00:43]} Rxe8 {[%emt 0:00:18]} 24. Qxc6 {[%emt 0:00:13]} Qxc6 {[%emt 0:00:33]} 25. Rxc6 {[%emt 0:00:07]} a5 {[%emt 0:01:18]} 26. Rb6 {[%emt 0:00:16]} Nc5 {[%emt 0:02:00]} 27. Rxb5 {[%emt 0:00:42]} Nd3 {[%emt 0:00:52]} 28. Rxa5 {[%emt 0:00:59]} Nf5 {[%emt 0:01:38]} 29. Rxf5 {[%emt 0:00:45]} Nc1 {[%emt 0:01:10]} 30. a4 {[%emt 0:00:00]} Rb8 {[%emt 0:00:18]} 31. Rb5 {[%emt 0:00:24]} Rc8 {[%emt 0:00:32]} 32. a5 {[%emt 0:00:18]} Rc3 {[%emt 0:00:43]} 33. a6 {[%emt 0:00:20]} Rc8 {[%emt 0:00:31]} 34. a7 {[%emt 0:00:10]} Na2 {[%emt 0:00:35]} 35. Rb8 {[%emt 0:00:08]} 1-0

[Event "44th Chess Olympiad Women 2022"]
[Site "Chennai"]
[Date "2022.08.02"]
[Round "5.60"]
[White "Sy Mame, Binta"]
[Black "Viana, Valeria"]
[Result "0-1"]
[ECO "B10"]
[WhiteElo "1256"]
[BlackElo "1441"]
[Annotator "NA RC COMBH"]
[PlyCount "81"]
[EventDate "2022.07.29"]
[EventType "team-tourn"]
[EventCountry "IND"]
[SourceTitle "playchess.com"]
[Source "ChessBase"]
[SourceQuality "1"]
[WhiteTeam "Senegal"]
[BlackTeam "Honduras"]
[WhiteTeamCountry "SEN"]
[BlackTeamCountry "HON"]
[TimeControl "40/5400+30:1800+30"]

1. e4 {[%emt 0:00:07]} c6 {[%emt 0:00:16]} 2. d3 {[%emt 0:01:16]} d5 {[%emt 0:00:24]} 3. exd5 {[%emt 0:01:22]} cxd5 {[%emt 0:00:11]} 4. d4 {[%emt 0:00:27]} Nc6 {[%emt 0:00:28]} 5. Be3 {[%emt 0:00:28]} e5 {[%emt 0:02:03]} 6. Bb5 {[%emt 0:04:32]} exd4 {[%emt 0:02:00]} 7. Bxc6+ {[%emt 0:00:43]} bxc6 {[%emt 0:00:06]} 8. Bxd4 {[%emt 0:00:25]} Nf6 {[%emt 0:06:01]} 9. Nf3 {[%emt 0:00:39]} Ba6 {[%emt 0:01:16]} 10. Nc3 {[%emt 0:04:53]} Bd6 {[%emt 0:02:49]} 11. Qd2 {[%emt 0:01:11]} O-O {[%emt 0:02:09]} 12. O-O-O {[%emt 0:00:08]} Qc7 {[%emt 0:01:46]} 13. Bxf6 {[%emt 0:01:52]} Bf4 {[%emt 0:02:04]} 14. Be5 {[%emt 0:01:36]} Bxd2+ {[%emt 0:00:16]} 15. Kxd2 {[%emt 0:00:09]} Qb7 {[%emt 0:00:55]} 16. Kc1 {[%emt 0:02:28]} Be2 {[%emt 0:01:43]} 17. Nxe2 {[%emt 0:00:17]} Rfe8 {[%emt 0:01:32]} 18. Rhe1 {[%emt 0:01:08]} f6 {[%emt 0:02:32]} 19. Bd6 {[%emt 0:01:21]} Re6 {[%emt 0:04:17]} 20. Ba3 {[%emt 0:01:16]} Rb8 {[%emt 0:10:43]} 21. Nfd4 {[%emt 0:01:43]} Re5 {[%emt 0:01:56]} 22. Nc3 {[%emt 0:02:31]} Rbe8 {[%emt 0:10:54]} 23. Rxe5 {[%emt 0:01:56]} fxe5 {[%emt 0:01:41]} 24. Nf5 {[%emt 0:00:33]} Qf7 {[%emt 0:01:48]} 25. Nd6 {[%emt 0:00:35]} Qf4+ {[%emt 0:00:08]} 26. Rd2 {[%emt 0:04:03]} Rb8 {[%emt 0:03:17]} 27. g3 {[%emt 0:02:30]} Qf6 {[%emt 0:01:44]} 28. Na4 {[%emt 0:02:03]} Qe6 {[%emt 0:07:07]} 29. h4 {[%emt 0:06:46]} e4 {[%emt 0:03:05]} 30. Re2 {[%emt 0:02:12]} Qg4 {[%emt 0:03:55]} 31. Re1 {[%emt 0:01:01]} e3 {[%emt 0:01:50]} 32. Rxe3 {[%emt 0:01:04]} Qxa4 {[%emt 0:00:15]} 33. Nf5 {[%emt 0:03:36]} Qc4 {[%emt 0:02:40]} 34. Ne7+ {[%emt 0:01:11]} Kh8 {[%emt 0:02:22]} 35. Re1 {[%emt 0:01:06]} Rd8 {[%emt 0:04:40]} 36. Kb1 {[%emt 0:02:18]} d4 {[%emt 0:02:50]} 37. f4 {[%emt 0:02:57]} d3 {[%emt 0:00:43]} 38. c3 {[%emt 0:03:07]} d2 {[%emt 0:00:36]} 39. Rd1 {[%emt 0:00:26]} Qd3+ {[%emt 0:00:31]} 40. Ka1 {[%emt 0:03:28]} Qc2 {[%emt 0:00:08]} 41. Rxd2 {[%emt 0:37:27]} 0-1